bitfinex-derivatives/quotes_ETHF0:USTF0_20250909
["timestamp","ask_amount","ask_price","bid_price","bid_amount"]
[1757442698110,2.9891,4289.0,4288.9,6.3773]
[1757442699116,2.9891,4289.0,4288.9,6.1423]
[1757442699314,2.9891,4289.0,4288.9,6.3773]
[1757442702111,2.9891,4289.0,4288.9,2.9345]
[1757442702316,3.5111,4288.5,4288.4,2.0791]
[1757442702516,3.5111,4288.5,4288.4,2.3141]
[1757442703108,3.5111,4288.5,4288.4,3.1695]
[1757442703312,2.9891,4288.5,4288.4,3.1695]
[1757442704318,3.5111,4288.5,4288.4,1.0723]
[1757442704520,3.5111,4288.5,4288.4,2.3141]
[1757442705116,3.5111,4288.5,4288.0,1.2418]
[1757442705321,2.1037,4288.1,4288.0,0.8373]
[1757442705518,2.9891,4288.1,4288.0,0.8373]
[1757442706817,2.9891,4288.1,4288.0,1.3013]
[1757442707026,2.9366,4287.8,4287.7,3.2339]
[1757442714032,2.0554,4287.8,4287.7,3.2339]
[1757442716037,2.9366,4287.8,4287.7,3.2339]
[1757442718534,8.1966,4287.8,4287.7,3.2339]
[1757442720040,5.26,4287.8,4287.7,3.2339]
[1757442720832,6.0996,4287.8,4287.7,3.2339]
[1757442721234,7.3154,4287.8,4287.7,3.2339]
[1757442721439,5.26,4287.8,4287.7,3.2339]
[1757442722739,7.3154,4287.8,4287.7,3.2339]
[1757442723343,6.0996,4287.8,4287.7,3.2339]
[1757442724041,7.3154,4287.8,4287.7,3.2339]
[1757442724235,5.26,4287.8,4287.7,3.2339]
[1757442725345,6.0996,4287.8,4287.7,3.2339]
[1757442725541,7.3154,4287.8,4287.7,3.2339]
[1757442725733,8.1966,4287.8,4287.7,3.2339]
[1757442728945,8.1966,4287.8,4287.7,3.2329]
[1757442729142,1.2158,4287.7,4287.4,3.2078]
[1757442729442,2.9366,4287.6,4287.5,2.392]
[1757442729636,8.6266,4287.6,4287.5,2.392]
[1757442730042,8.6266,4287.6,4287.5,3.2339]
[1757442730443,8.6266,4287.6,4287.5,2.9989]
[1757442730643,3.432,4287.5,4287.4,3.2078]
[1757442730842,9.042,4287.5,4287.3,0.235]
[1757442731250,9.042,4287.5,4286.9,3.2078]
[1757442731251,3.432,4287.0,4286.9,3.2078]
[1757442731448,8.112,4287.0,4286.9,5.5998]
[1757442731744,8.112,4287.0,4286.9,6.4417]
[1757442732650,8.112,4287.0,4286.9,5.5998]
[1757442735556,8.112,4287.0,4286.9,5.3648]
[1757442735850,8.112,4287.0,4286.9,5.5998]
[1757442737253,8.112,4287.0,4286.9,4.0635]
[1757442737456,8.112,4287.0,4286.9,5.5042]
[1757442739555,8.112,4287.0,4286.9,6.3887]
[1757442739755,7.6166,4287.0,4286.9,6.3887]
[1757442741559,8.1402,4287.0,4286.9,6.1537]
[1757442741748,8.1402,4287.0,4286.9,5.5042]
[1757442747548,8.1402,4287.0,4286.9,6.3887]
[1757442748062,7.6166,4287.0,4286.9,6.3887]
[1757442749162,5.5196,4287.0,4286.9,6.3887]
[1757442749658,6.7083,4287.0,4286.9,6.3887]
[1757442750661,7.579,4287.0,4286.9,6.3887]
[1757442753061,7.579,4287.0,4286.9,6.1537]
[1757442753263,7.579,4287.0,4286.9,6.3877]
[1757442753863,5.5058,4287.0,4286.9,6.3877]
[1757442754056,6.6945,4287.0,4286.9,6.3877]
[1757442754461,7.5652,4287.0,4286.9,6.3877]
[1757442757764,4.68,4287.0,4286.9,6.62097]
[1757442758065,2.0145,4288.3,4287.2,0.41981]
[1757442758270,0.8258,4288.2,4287.6,3.2078]
[1757442758570,2.8852,4287.7,4287.6,3.2078]
[1757442758869,8.2852,4287.7,4287.6,3.4428]
[1757442759364,6.5887,4287.7,4287.6,3.4428]
[1757442759573,5.4,4287.7,4287.6,3.4428]
[1757442759869,5.4,4287.7,4287.6,7.4428]
[1757442760076,5.4,4287.7,4287.6,7.67603]
[1757442760372,5.4,4287.7,4287.6,9.35001268]
[1757442760761,5.4,4287.7,4287.6,9.11678268]
[1757442761769,1.1887,4288.0,4287.6,9.53655268]
[1757442761972,6.3687,4288.0,4287.6,5.53655268]
[1757442762467,2.0145,4287.7,4287.6,3.2078]
[1757442762660,6.8345,4287.7,4287.6,3.4428]
[1757442766372,6.8345,4287.7,4287.6,3.2078]
[1757442766560,6.8345,4287.7,4287.6,3.4428]
[1757442768468,7.7052,4287.7,4287.6,3.2078]
[1757442768667,7.7052,4287.7,4287.6,3.4428]
[1757442768871,6.5165,4287.7,4287.6,0.235]
[1757442769073,10.5165,4287.7,4287.6,0.235]
[1757442769568,11.7691,4287.7,4287.6,0.235]
[1757442769770,2.9242,4287.2,4287.1,3.2078]
[1757442769974,8.0542,4287.2,4287.1,3.4428]
[1757442772473,8.0542,4287.2,4287.1,3.2078]
[1757442772674,6.8016,4287.2,4287.1,0.235]
[1757442773371,8.0542,4287.2,4287.1,0.235]
[1757442774872,1.6716,4286.7,4286.6,3.2078]
[1757442775072,7.7642,4286.7,4286.6,3.4428]
[1757442776276,7.7642,4286.7,4286.6,4.276]
[1757442776771,7.7642,4286.7,4286.6,4.8645]
[1757442776972,7.7642,4286.7,4286.6,5.0995]
[1757442777373,7.7642,4286.7,4286.6,6.3212]
[1757442778072,7.7642,4286.7,4286.6,6.0862]
[1757442778277,7.7642,4286.7,4286.6,4.276]
[1757442779473,7.7642,4286.7,4286.6,6.3212]
[1757442779772,7.7642,4286.7,4286.6,5.0995]
[1757442780779,7.7642,4286.7,4286.6,6.3212]
[1757442781077,7.7642,4286.7,4286.6,5.0995]
[1757442781868,7.7642,4286.7,4286.6,4.276]
[1757442782375,7.7642,4286.7,4286.6,5.0995]
[1757442784080,7.7642,4286.7,4286.6,6.3212]
[1757442784770,7.7642,4286.7,4286.6,5.0995]
[1757442785080,7.7642,4286.7,4286.6,6.3212]
[1757442786075,7.7642,4286.7,4286.6,3.2078]
[1757442786275,7.7642,4286.7,4286.6,3.4428]
[1757442786677,7.7642,4286.7,4286.6,4.276]
[1757442786877,7.7642,4286.7,4286.6,6.3212]
[1757442787174,7.7642,4286.7,4286.6,5.0995]
[1757442787380,7.7642,4286.7,4286.6,4.276]
[1757442791477,7.7642,4286.7,4286.6,3.2078]
[1757442791780,7.7642,4286.7,4286.6,3.4428]
[1757442792174,7.7642,4286.7,4286.6,3.2078]
[1757442792381,7.7642,4286.7,4286.6,0.235]
[1757442794588,7.7642,4286.7,4286.2,1.41311588]
[1757442794784,7.7642,4286.7,4286.3,0.235]
[1757442794984,7.7642,4286.7,4286.4,1.2217]
[1757442795288,7.7642,4286.7,4286.5,0.235]
[1757442796884,7.7642,4286.7,4286.6,0.235]
[1757442802192,7.7642,4286.7,4286.6,1.4976]
[1757442802692,7.7642,4286.7,4286.6,0.235]
[1757442805095,7.7642,4286.7,4286.6,2.324]
[1757442807491,7.7642,4286.7,4286.6,3.1056]
[1757442807697,5.701,4286.7,4286.6,3.1056]
[1757442808504,5.6992,4286.7,4286.6,3.1056]
[1757442809003,7.7413,4286.7,4286.6,3.1056]
[1757442813000,7.7413,4286.7,4286.6,2.8706]
[1757442813300,7.7413,4286.7,4286.6,3.1056]
[1757442833216,3.2078,4287.9,4287.2,1.1927]
[1757442833416,0.7998,4287.5,4287.4,2.7305]
[1757442833619,6.4898,4287.5,4287.4,2.7305]
[1757442833925,5.69,4287.5,4287.4,2.7305]
[1757442834337,0.15,4287.5,4287.4,5.9576]
[1757442834623,3.6991,4288.5,4287.5,0.4771]
[1757442834824,9.3891,4288.5,4287.7,3.2078]
[1757442835019,0.7998,4287.9,4287.8,2.9655]
[1757442835229,5.9498,4287.9,4287.8,2.9655]
[1757442835818,5.15,4287.9,4287.8,2.9655]
[1757442836727,2.811,4288.4,4288.3,2.7305]
[1757442836922,8.281,4288.4,4288.3,6.1733]
[1757442838018,7.0512,4288.4,4288.3,6.1733]
[1757442838223,6.2698,4288.4,4288.3,6.1733]
[1757442838420,5.47,4288.4,4288.3,6.1733]
[1757442843738,6.2698,4288.4,4288.3,6.1733]
[1757442845433,5.47,4288.4,4288.3,6.59301]
[1757442845634,0.4509611,4288.4,4288.3,6.59301]
[1757442845932,1.2298,4288.9,4288.8,2.7305]
[1757442845933,2.0296,4288.9,4288.8,2.7305]
[1757442846130,7.0996,4288.9,4288.8,2.9645]
[1757442846637,7.881,4288.9,4288.8,2.9645]
[1757442848646,5.8698,4288.9,4288.8,2.9645]
[1757442849044,7.0996,4288.9,4288.8,2.9645]
[1757442849244,7.881,4288.9,4288.8,2.9645]
[1757442852449,6.6512,4288.9,4288.6,5.9927]
[1757442852744,2.811,4288.4,4287.7,3.2078]
[1757442852949,1.5812,4287.9,4287.8,1.7718]
[1757442853148,2.811,4287.9,4287.8,6.5718]
[1757442853546,2.811,4287.9,4287.8,7.7645]
[1757442853748,2.811,4287.9,4287.8,2.9645]
[1757442854144,2.811,4287.9,4287.8,1.9684]
[1757442854350,2.811,4287.8,4287.7,3.2078]
[1757442854553,6.821,4287.8,4287.7,3.4418]
[1757442854747,8.501,4287.8,4287.7,5.4102]
[1757442855855,2.821,4287.8,4287.7,5.4102]
[1757442856250,2.821,4287.8,4287.7,6.1723]
[1757442858156,6.3598,4287.8,4287.7,6.1723]
[1757442858959,7.5572,4287.8,4287.7,6.1723]
[1757442861267,2.8047,4288.5,4288.4,1.9953]
[1757442861463,8.2047,4288.5,4288.4,2.2293]
[1757442861663,8.6646,4288.5,4288.4,2.2293]
[1757442862967,8.2047,4288.5,4288.4,3.0433]
[1757442865168,8.6646,4288.5,4288.4,1.4355]
[1757442865363,8.6646,4288.5,4288.4,1.2015]
[1757442865568,5.4,4288.5,4288.4,3.0433]
[1757442866662,5.4,4288.5,4288.4,3.463]
[1757442867261,1.6073,4289.5,4289.4,1.9953]
[1757442867466,7.2273,4289.5,4289.4,3.0433]
[1757442868364,7.2273,4289.5,4289.4,3.23024367]
[1757442869362,8.0345,4289.5,4289.4,3.23024367]
[1757442869961,8.0345,4289.5,4289.4,2.41624367]
[1757442875870,7.2273,4289.5,4289.4,2.41624367]
[1757442876071,7.2273,4289.5,4289.4,3.23024367]
[1757442876974,8.0345,4289.5,4289.4,3.23024367]
[1757442878577,8.0345,4289.5,4289.4,2.41624367]
[1757442880876,7.2273,4289.5,4289.4,3.23024367]
[1757442882881,8.0345,4289.5,4289.4,3.23024367]
[1757442883668,8.0345,4289.5,4289.4,3.0433]
[1757442883869,1.6073,4288.7,4288.6,4.4093]
[1757442884073,7.2645,4288.7,4288.6,3.2078]
[1757442884278,7.2645,4288.7,4288.6,0.234]
[1757442884471,7.2645,4288.7,4288.6,0.42220168]
[1757442884677,7.2645,4288.7,4288.6,1.4355]
[1757442884878,7.2645,4288.7,4288.6,1.62388875]
[1757442885477,7.2645,4288.7,4288.6,0.234]
[1757442885679,7.2645,4288.7,4288.6,1.62654501]
[1757442885878,7.2645,4288.7,4288.6,1.4355]
[1757442887284,7.2645,4288.7,4288.6,2.2293]
[1757442887486,6.4573,4288.7,4288.6,3.0135]
[1757442887878,4.85,4288.7,4288.6,3.0135]
[1757442888074,0.8208,4289.4,4288.7,1.1944]
[1757442888277,2.3364,4289.2,4289.1,5.1553]
[1757442888478,7.1464,4289.2,4289.1,5.3893]
[1757442889080,6.3256,4289.2,4289.1,5.3893]
[1757442890185,6.3256,4289.2,4289.1,6.1735]
[1757442892088,7.1464,4289.2,4289.1,6.1735]
[1757442892284,6.3256,4289.2,4289.1,6.1735]
[1757442902489,4.81,4289.2,4289.1,3.4418]
[1757442902689,8.81,4289.2,4288.6,3.2078]
[1757442902997,0.92575129,4289.1,4288.7,0.234]
[1757442903206,3.2078,4288.7,4288.2,0.1886755]
[1757442903402,8.0978,4288.7,4288.3,0.234]
[1757442904890,8.0978,4288.7,4288.1,36.7908]
[1757442905199,0.23319,4288.6,4288.2,0.234]
[1757442905501,5.37319,4288.6,4288.2,0.234]
[1757442905697,5.375,4288.6,4288.2,0.234]
[1757442907297,5.14,4288.6,4288.2,0.234]
[1757442907499,5.14,4288.6,4288.3,1.1944]
[1757442907702,0.7611,4288.5,4288.4,2.2126]
[1757442907906,5.8211,4288.5,4288.4,2.2126]
[1757442908602,5.06,4288.5,4288.4,2.2126]
[1757442909002,5.06,4288.5,4288.4,6.86548]
[1757442909301,3.2078,4289.8,4288.5,1.1944]
[1757442909597,8.9878,4289.8,4289.2,1.1944]
[1757442909801,8.9878,4289.8,4289.4,1.1944]
[1757442910003,0.7611,4289.7,4289.6,1.1944]
[1757442910300,5.08,4289.7,4289.6,5.1864]
[1757442911394,0.22936,4290.0,4289.9,0.7842]
[1757442911601,0.235,4291.4,4289.9,1.43875]
[1757442911793,0.23306,4291.3,4290.6,1.1944]
[1757442912000,0.7611,4290.8,4290.7,1.4294]
[1757442912212,6.3911,4290.8,4290.7,1.4294]
[1757442912503,9.5989,4290.8,4290.2,1.1944]
[1757442912699,9.5989,4290.8,4288.9,2.91697974]
[1757442912700,0.7611,4290.0,4289.2,3.2078]
[1757442912899,6.5311,4290.0,4289.4,1.1944]
[1757442913099,6.5311,4290.0,4289.5,5.035]
[1757442913296,6.5311,4290.0,4289.6,1.1944]
[1757442913497,6.5311,4290.0,4289.7,0.235]
[1757442915807,6.5311,4290.0,4289.8,0.235]
[1757442916510,6.5311,4290.0,4289.9,0.235]
[1757442916710,7.3108,4290.0,4289.9,0.235]
[1757442918102,1.599,4289.4,4289.3,1.2067]
[1757442918304,6.529,4289.4,4289.3,1.4417]
[1757442918505,6.529,4289.4,4289.3,1.2067]
[1757442918698,0.8193,4289.2,4288.8,1.2067]
[1757442918905,0.8193,4288.9,4288.8,2.0367]
[1757442919101,5.9193,4288.9,4288.8,2.2717]
[1757442919506,5.9193,4288.9,4288.8,3.086]
[1757442919808,6.699,4288.9,4288.8,2.2717]
[1757442920011,5.9193,4288.9,4288.8,2.2717]
[1757442921311,6.699,4288.9,4288.8,2.2717]
[1757442921607,5.9193,4288.9,4288.8,2.2717]
[1757442925416,6.699,4288.9,4288.8,2.2717]
[1757442926112,5.9193,4288.9,4288.8,3.086]
[1757442926310,5.1,4288.9,4288.8,3.086]
[1757442928907,0.73,4288.9,4288.8,3.086]
[1757442929513,5.43,4288.9,4288.8,3.086]
[1757442936019,6.2493,4288.9,4288.8,3.086]
[1757442936422,7.029,4288.9,4288.8,3.086]
[1757442936824,1.599,4288.3,4288.2,4.4145]
[1757442937020,7.209,4288.3,4288.2,4.6495]
[1757442937322,7.209,4288.3,4288.2,5.4795]
[1757442937623,6.4293,4288.3,4288.2,6.2938]
[1757442938623,7.209,4288.3,4288.2,4.4145]
[1757442938822,7.209,4288.3,4288.2,5.4795]
[1757442939120,6.4293,4288.3,4288.2,6.2938]
[1757442942627,1.7193,4288.3,4288.2,6.2938]
[1757442942925,0.68,4288.3,4288.2,6.2938]
[1757442943122,3.74,4288.3,4288.2,6.2938]
[1757442944926,0.27,4288.3,4288.2,6.2938]
[1757442945129,5.37,4288.3,4288.2,6.2938]
[1757442946325,6.1893,4288.3,4288.2,6.2938]
[1757442946825,6.9647,4288.3,4288.2,6.2938]
[1757442952326,7.702,4288.3,4288.2,4.6485]
[1757442952828,6.9647,4288.3,4288.2,5.4444]
[1757442953331,6.9647,4288.3,4288.2,6.234]
[1757442955131,6.1454,4288.3,4288.2,6.234]
[1757442955532,5.37,4288.3,4288.2,6.234]
[1757442955929,6.1454,4288.3,4288.2,6.234]
[1757442956233,6.9474,4288.3,4288.2,6.0]
[1757442956432,6.9474,4288.3,4288.2,6.234]
[1757442956834,6.9474,4288.3,4288.2,6.0]
[1757442957133,7.6847,4288.3,4288.2,5.4444]
[1757442957535,7.6847,4288.3,4288.2,4.6485]
[1757442958433,7.6847,4288.3,4288.2,5.4444]
[1757442961136,7.6847,4288.3,4288.2,5.2104]
[1757442961337,6.9474,4288.3,4288.2,5.4444]
[1757442961930,6.1454,4288.3,4288.2,6.234]
[1757442962534,6.9474,4288.3,4288.2,6.234]
[1757442962727,6.9474,4288.3,4288.2,4.6485]
[1757442962728,7.6847,4288.3,4288.2,4.6485]
[1757442962932,11.1806,4288.3,4287.7,3.2078]
[1757442963139,2.3147,4287.8,4287.7,5.1765]
[1757442963330,7.2674,4287.8,4287.7,6.2001]
[1757442966934,6.4654,4287.8,4287.7,6.2001]
[1757442970036,7.2674,4287.8,4287.7,6.2001]
[1757442970236,8.0047,4287.8,4287.7,5.1765]
[1757442970541,2.3147,4287.5,4287.2,1.1728]
[1757442970841,8.0227,4287.5,4287.4,0.234]
[1757442971230,7.6547,4287.5,4287.4,1.4068]
[1757442972442,7.6547,4287.5,4287.4,1.1728]
[1757442972645,7.6547,4287.5,4287.4,1.4068]
[1757442979061,7.981,4287.5,4287.3,0.00349875]
[1757442979271,2.1979,4286.7,4286.6,1.1249]
[1757442979568,7.4779,4286.7,4286.6,2.1453]
[1757442980063,6.7858,4286.7,4286.6,2.1453]
[1757442981255,6.7858,4286.7,4286.6,2.8744]
[1757442988165,7.4779,4286.7,4286.6,1.3599]
[1757442988366,7.4779,4286.7,4286.6,2.1453]
[1757442990976,6.7858,4286.7,4286.6,2.1453]
[1757442991176,6.7858,4286.7,4286.6,2.8744]
[1757442991872,7.4779,4286.7,4286.6,2.8744]
[1757442992673,6.7858,4286.7,4286.6,2.8744]
[1757442997476,7.4779,4286.7,4286.6,1.3599]
[1757442997678,1.5058,4286.2,4286.1,1.1249]
[1757442997874,6.7358,4286.2,4286.1,3.06210666]
[1757442998582,5.23,4286.2,4286.1,3.06210666]
[1757443000483,5.9642,4286.2,4286.1,3.06210666]
[1757443000778,5.23,4286.2,4286.1,3.06210666]
[1757443003786,7.4279,4286.2,4286.1,2.33300666]
[1757443003975,7.4279,4286.2,4286.1,1.54760666]
[1757443004280,6.7358,4286.2,4286.1,3.06210666]
[1757443004985,5.9642,4286.2,4286.1,3.06210666]
[1757443005786,5.23,4286.2,4286.1,3.06210666]
[1757443008392,5.9809,4286.2,4286.1,2.82710666]
[1757443008588,5.9809,4286.2,4286.1,3.06210666]
[1757443009592,3.9587,4286.5,4286.4,1.518]
[1757443009786,9.7387,4286.5,4286.4,2.8455]
[1757443010983,10.4758,4286.5,4286.4,2.8455]
[1757443016195,11.127,4286.5,4286.4,2.8455]
[1757443016893,11.127,4286.5,4286.4,2.0768]
[1757443017095,7.9192,4286.5,4286.4,2.0768]
[1757443021295,7.268,4286.5,4286.4,2.0768]
[1757443021897,7.268,4286.5,4286.4,2.8455]
[1757443022390,7.9192,4286.5,4286.4,2.8455]
[1757443022587,7.268,4286.5,4286.4,2.8455]
[1757443023300,7.9192,4286.5,4286.4,1.3275]
[1757443026108,7.9192,4286.5,4286.1,0.18770666]
[1757443026306,1.488,4286.3,4286.2,0.235]
[1757443026510,6.8692,4286.3,4286.2,0.235]
[1757443026809,6.8692,4286.3,4286.2,1.3275]
[1757443028307,6.218,4286.3,4285.8,1.0925]
[1757443028501,6.218,4286.3,4285.7,5.29135695]
[1757443028502,2.1392,4285.8,4285.7,1.0925]
[1757443028701,7.7192,4285.8,4285.7,5.2846]
[1757443028908,7.068,4285.8,4285.7,6.0533]
[1757443029114,7.068,4285.8,4285.7,6.24434509]
[1757443029903,7.068,4285.8,4285.7,6.00934509]
[1757443030114,7.068,4285.8,4285.7,6.24434509]
[1757443030612,5.58,4285.8,4285.7,6.24434509]
[1757443031509,6.3309,4285.8,4285.7,6.24434509]
[1757443037116,5.58,4285.8,4285.7,6.24434509]
[1757443044425,7.016,4285.8,4285.7,5.25344509]
[1757443044623,7.016,4285.8,4285.7,5.48844509]
[1757443045020,7.016,4285.8,4285.7,6.26244509]
[1757443045514,6.3,4285.8,4285.7,6.26244509]
[1757443045824,5.58,4285.8,4285.7,6.26244509]
[1757443047521,0.611,4286.7,4285.9,1.1396]
[1757443047733,1.436,4286.6,4286.5,2.3611]
[1757443048028,1.436,4286.6,4286.5,2.5961]
[1757443048029,6.436,4286.6,4286.5,2.5961]
[1757443048223,7.047,4286.6,4286.5,2.5961]
[1757443050023,5.72,4286.6,4286.5,3.3701]
[1757443050328,1.61,4286.6,4286.5,2.2305]
[1757443050524,0.611,4287.4,4286.6,1.1396]
[1757443050725,0.72,4286.9,4286.8,2.6757]
[1757443050927,5.97,4286.9,4286.8,2.6757]
[1757443051325,5.25,4286.9,4286.8,5.8835]
[1757443052329,1.436,4286.4,4286.3,5.29135695]
[1757443052629,7.267,4286.4,4286.3,3.4418]
[1757443052830,7.267,4286.4,4286.3,4.5814]
[1757443053031,7.267,4286.4,4286.3,3.4418]
[1757443053233,7.267,4286.4,4286.3,4.5814]
[1757443053527,7.267,4286.4,4286.3,5.3435]
[1757443055020,6.656,4286.4,4286.3,5.3435]
[1757443055226,6.656,4286.4,4286.3,6.1175]
[1757443056430,5.22,4286.4,4286.3,3.4418]
[1757443056627,5.94,4286.4,4286.3,6.1175]
[1757443056931,6.656,4286.4,4286.3,6.1175]
[1757443060936,7.279,4286.4,4286.3,6.1175]
[1757443061128,6.656,4286.4,4286.3,6.1175]
[1757443062230,7.279,4286.4,4286.3,4.3474]
[1757443062433,7.279,4286.4,4286.3,5.3435]
[1757443062733,6.656,4286.4,4286.3,6.1175]
[1757443062936,5.94,4286.4,4286.3,6.1175]
[1757443063533,6.656,4286.4,4286.3,6.1175]
[1757443065534,5.94,4286.4,4286.3,6.1175]
[1757443066034,5.22,4286.4,4286.3,6.1175]
[1757443066834,5.94,4286.4,4286.3,6.1175]
[1757443070234,5.22,4286.4,4286.3,6.1175]
[1757443070837,5.9313,4286.4,4286.3,6.1175]
[1757443071533,7.262,4286.4,4286.3,6.1175]
[1757443071738,7.262,4286.4,4286.3,5.3435]
[1757443071926,6.6563,4286.4,4286.3,5.3435]
[1757443072131,6.6563,4286.4,4286.3,6.0794]
[1757443073634,5.22,4286.4,4286.3,6.0794]
[1757443074935,0.6057,4287.1,4286.3,6.0794]
[1757443075136,7.2163,4287.1,4287.0,1.1611]
[1757443075337,7.2163,4287.1,4287.0,2.5141]
[1757443075938,6.4913,4287.1,4287.0,3.25]
[1757443077332,6.4913,4287.1,4287.0,2.5141]
[1757443077333,7.2163,4287.1,4287.0,2.5141]
[1757443077532,7.822,4287.1,4287.0,0.234]
[1757443077735,1.4363,4286.9,4286.4,2.08355695]
[1757443077935,1.4363,4286.9,4286.3,4.3268]
[1757443077936,7.2063,4286.9,4286.5,0.234]
[1757443078142,7.2063,4286.9,4286.5,0.6773]
[1757443078340,7.2063,4286.9,4286.6,1.119]
[1757443078640,7.2063,4286.9,4286.7,1.353]
[1757443079040,7.2063,4286.9,4286.7,0.234]
[1757443079244,7.2063,4286.9,4286.8,1.119]
[1757443079430,7.2063,4286.9,4286.3,3.2078]
[1757443079636,7.2063,4286.9,4286.4,0.234]
[1757443079637,10.4141,4286.9,4286.4,0.234]
[1757443079838,10.4141,4286.9,4286.4,1.353]
[1757443080137,10.4141,4286.9,4286.4,0.234]
[1757443080337,10.4141,4286.9,4286.5,1.119]
[1757443080638,10.4141,4286.9,4286.6,0.234]
[1757443081749,10.4141,4286.9,4286.7,0.234]
[1757443082244,4.141402,4286.8,4286.6,0.234]
[1757443082432,5.92329,4286.8,4286.6,0.234]
[1757443082736,5.69,4286.8,4286.6,0.234]
[1757443087347,0.14137816,4286.7,4286.6,0.234]
[1757443087544,5.15137816,4286.7,4286.4,0.234]
[1757443087741,0.71419487,4286.6,4286.4,0.234]
[1757443087951,0.14137816,4286.5,4286.4,0.234]
[1757443088141,5.47137816,4286.5,4286.4,0.234]
[1757443089248,5.47137816,4286.5,4286.4,1.353]
[1757443092150,5.33,4286.5,4286.4,1.353]
[1757443096054,5.33,4286.5,4286.4,2.0708]
[1757443096253,5.33,4286.5,4286.4,2.8067]
[1757443097553,5.33,4286.5,4286.4,2.0944]
[1757443099256,5.33,4286.5,4286.4,2.8307]
[1757443110357,5.33,4286.5,4286.4,3.25059]
[1757443111262,5.33,4286.5,4286.4,2.8307]
[1757443115260,3.2078,4287.5,4286.4,2.5967]
[1757443115459,0.12981979,4287.4,4286.6,1.0806]
[1757443115666,0.12981979,4287.4,4286.7,0.234]
[1757443115667,5.05,4287.4,4286.7,0.234]
[1757443115962,5.05,4287.4,4286.7,1.3146]
[1757443117570,5.05,4287.4,4286.7,2.056]
[1757443117770,5.05,4287.4,4286.8,1.0806]
[1757443118761,5.05,4287.4,4287.0,0.4462]
[1757443118962,5.05,4287.4,4287.1,0.234]
[1757443119162,5.05,4287.4,4287.2,1.0806]
[1757443120470,5.05,4287.4,4287.1,0.234]
[1757443120766,5.05,4287.4,4287.2,1.0806]
[1757443121466,5.05,4287.4,4287.1,0.234]
[1757443121769,5.05,4287.4,4287.2,1.0806]
[1757443122468,5.05,4287.4,4287.1,1.0806]
[1757443122670,5.05,4287.4,4287.0,0.6802]
[1757443123461,5.05,4287.4,4287.1,1.0806]
[1757443124072,5.05,4287.4,4287.0,0.6802]
[1757443124267,5.05,4287.4,4287.1,1.0806]
[1757443124467,5.05,4287.4,4287.0,1.4216]
[1757443124667,5.05,4287.4,4287.0,0.6802]
[1757443124871,5.05,4287.4,4287.1,1.0806]
[1757443125370,5.05,4287.4,4287.0,0.6802]
[1757443125573,5.05,4287.4,4287.1,1.0806]
[1757443127571,5.05,4287.4,4287.0,0.6802]
[1757443127772,5.05,4287.4,4287.1,1.0666]
[1757443128968,5.05,4287.4,4287.0,0.6802]
[1757443129266,5.05,4287.4,4287.1,1.0666]
[1757443131474,5.05,4287.4,4287.0,0.4462]
[1757443131875,5.05,4287.4,4287.0,1.1183]
[1757443132076,5.05,4287.4,4287.1,1.0666]
[1757443132770,5.05,4287.4,4287.0,0.4462]
[1757443132977,5.05,4287.4,4287.1,1.0666]
[1757443133172,5.05,4287.4,4286.6,1.0666]
[1757443133478,3.2078,4287.0,4286.6,1.3006]
[1757443133673,8.0878,4287.0,4286.6,1.3006]
[1757443133977,0.12961896,4286.9,4286.6,0.234]
[1757443134176,5.44,4286.9,4286.5,0.4462]
[1757443134567,5.44,4286.9,4286.6,1.0666]
[1757443134771,5.44,4286.9,4286.6,0.6721]
[1757443134971,5.44,4286.9,4286.7,1.0666]
[1757443135976,5.44,4286.9,4286.8,1.7387]
[1757443140980,5.44,4286.9,4286.8,1.0666]
[1757443141176,5.56965614,4286.9,4286.8,1.0666]
[1757443142183,5.56965731,4286.9,4286.8,1.0666]
[1757443145984,5.44,4286.9,4286.8,1.7387]
[1757443149796,5.56964886,4286.9,4286.8,1.0666]
[1757443151091,5.80364886,4286.9,4286.5,0.4462]
[1757443151297,5.674,4286.9,4286.6,1.0666]
[1757443151598,5.674,4286.9,4286.5,0.4462]
[1757443152286,0.13785419,4286.8,4286.5,0.4462]
[1757443152491,4.88,4286.8,4286.6,1.0666]
[1757443152691,4.88,4286.8,4286.5,0.4462]
[1757443154093,4.88,4286.8,4286.6,1.0666]
[1757443154298,4.88,4286.8,4286.5,0.4462]
[1757443154499,4.88,4286.8,4286.6,1.0666]
[1757443155300,4.88,4286.8,4286.5,0.4462]
[1757443155996,4.88,4286.8,4286.6,1.0666]
[1757443156197,4.88,4286.8,4286.5,0.4462]
[1757443156796,4.88,4286.8,4286.6,1.0821]
[1757443158405,4.88,4286.8,4286.5,0.4462]
[1757443158605,0.13788766,4286.7,4286.6,1.0821]
[1757443158805,5.49788766,4286.7,4286.6,1.0821]
[1757443159806,5.49788766,4286.7,4286.6,1.8184]
[1757443169211,5.49788766,4286.7,4286.5,1.0821]